[Event "Titled Tuesday Blitz February 15 Early 2022"]
[White "Kozin, Yuri"]
[Black "Vidit, Santosh Gujrathi"]
[WhiteFideId "4129920"]
[BlackFideId "5029465"]
[WhiteElo "2542"]
[BlackElo "2654"]
[Result "0-1"]
[Round "03"]
[TimeControl "180+1"]
[Date "2022.02.15"]
[WhiteClock "0:00:20"]
[BlackClock "0:00:29"]

1. e4 {[%clk 0:03:00]}  c6 {[%clk 0:02:58]} 2. d4 {[%clk 0:03:00]}  d5 {[%clk 0:02:59]} 3. exd5 {[%clk 0:03:01]}  cxd5 {[%clk 0:03:00]} 4. c4 {[%clk 0:03:02]}  Nf6 {[%clk 0:02:59]} 5. Nc3 {[%clk 0:03:02]}  Nc6 {[%clk 0:02:54]} 6. Bg5 {[%clk 0:03:02]}  Be6 {[%clk 0:02:53]} 7. Be2 {[%clk 0:03:02]}  Qa5 {[%clk 0:02:32]} 8. Bf3 {[%clk 0:03:00]}  O-O-O {[%clk 0:02:23]} 9. c5 {[%clk 0:02:54]}  Ne4 {[%clk 0:02:17]} 10. Bd2 {[%clk 0:02:37]}  Qc7 {[%clk 0:01:58]} 11. Nge2 {[%clk 0:02:31]}  g5 {[%clk 0:01:44]} 12. Bxe4 {[%clk 0:02:06]}  dxe4 {[%clk 0:01:45]} 13. Bxg5 {[%clk 0:02:06]}  Bg7 {[%clk 0:01:44]} 14. Bf4 {[%clk 0:02:02]}  Qd7 {[%clk 0:01:36]} 15. Be3 {[%clk 0:01:53]}  Nxd4 {[%clk 0:01:16]} 16. O-O {[%clk 0:01:51]}  Nxe2+ {[%clk 0:00:58]} 17. Qxe2 {[%clk 0:01:50]}  Qd3 {[%clk 0:00:57]} 18. Qh5 {[%clk 0:01:43]}  f5 {[%clk 0:00:55]} 19. c6 {[%clk 0:01:30]}  bxc6 {[%clk 0:00:54]} 20. Bxa7 {[%clk 0:01:23]}  Kb7 {[%clk 0:00:48]} 21. Bc5 {[%clk 0:01:21]}  Bf6 {[%clk 0:00:48]} 22. Rac1 {[%clk 0:00:50]}  Rhg8 {[%clk 0:00:47]} 23. Na4 {[%clk 0:00:35]}  Rg5 {[%clk 0:00:45]} 24. Qh6 {[%clk 0:00:20]}  Rxg2+ {[%clk 0:00:37]} 25. Kh1 {[%clk 0:00:20]}  Qf3 {[%clk 0:00:33]} 26. Qe3 {[%clk 0:00:20]}  Rg1+ {[%clk 0:00:29]} 0-1


[Site "https://www.chess.com"]

[Event "Titled Tuesday Blitz February 15 Early 2022"]
[White "Krysa, Leandro"]
[Black "Mikhnenko, Alexander"]
[WhiteFideId "116807"]
[BlackFideId "34143014"]
[WhiteElo "2490"]
[BlackElo "2140"]
[Result "1-0"]
[Round "03"]
[TimeControl "180+1"]
[Date "2022.02.15"]
[WhiteClock "0:00:06"]
[BlackClock "0:00:04"]

1. e4 {[%clk 0:03:00]}  c5 {[%clk 0:02:59]} 2. Nf3 {[%clk 0:03:00]}  e6 {[%clk 0:03:00]} 3. d4 {[%clk 0:02:59]}  cxd4 {[%clk 0:03:00]} 4. Nxd4 {[%clk 0:02:59]}  Nf6 {[%clk 0:03:01]} 5. Nc3 {[%clk 0:02:58]}  Nc6 {[%clk 0:03:01]} 6. a3 {[%clk 0:02:58]}  Bc5 {[%clk 0:02:44]} 7. Nxc6 {[%clk 0:02:57]}  dxc6 {[%clk 0:02:38]} 8. Qxd8+ {[%clk 0:02:54]}  Kxd8 {[%clk 0:02:38]} 9. e5 {[%clk 0:02:54]}  Nd5 {[%clk 0:02:37]} 10. Ne4 {[%clk 0:02:50]}  Be7 {[%clk 0:02:32]} 11. c4 {[%clk 0:02:47]}  Nb6 {[%clk 0:02:30]} 12. Bf4 {[%clk 0:02:42]}  Ke8 {[%clk 0:02:22]} 13. O-O-O {[%clk 0:02:41]}  Bd7 {[%clk 0:02:20]} 14. h4 {[%clk 0:02:39]}  Rd8 {[%clk 0:02:17]} 15. Be2 {[%clk 0:02:24]}  Kf8 {[%clk 0:02:16]} 16. h5 {[%clk 0:02:22]}  h6 {[%clk 0:02:16]} 17. Rh3 {[%clk 0:02:14]}  Kg8 {[%clk 0:02:15]} 18. Nd6 {[%clk 0:02:11]}  Bxd6 {[%clk 0:02:06]} 19. Rxd6 {[%clk 0:02:09]}  Kf8 {[%clk 0:02:05]} 20. Be3 {[%clk 0:02:00]}  Nc8 {[%clk 0:01:54]} 21. Rd2 {[%clk 0:01:54]}  Ke8 {[%clk 0:01:51]} 22. Rh4 {[%clk 0:01:47]}  b6 {[%clk 0:01:50]} 23. Rhd4 {[%clk 0:01:40]}  Ne7 {[%clk 0:01:48]} 24. g4 {[%clk 0:01:39]}  Nc8 {[%clk 0:01:35]} 25. Bf3 {[%clk 0:01:35]}  Ke7 {[%clk 0:01:35]} 26. b4 {[%clk 0:01:30]}  f6 {[%clk 0:01:18]} 27. Bf4 {[%clk 0:01:25]}  c5 {[%clk 0:01:13]} 28. R4d3 {[%clk 0:01:16]}  Ba4 {[%clk 0:01:04]} 29. Kb2 {[%clk 0:01:12]}  Rxd3 {[%clk 0:00:56]} 30. Rxd3 {[%clk 0:01:13]}  Rd8 {[%clk 0:00:27]} 31. Rxd8 {[%clk 0:01:12]}  Kxd8 {[%clk 0:00:27]} 32. b5 {[%clk 0:01:13]}  Ke7 {[%clk 0:00:23]} 33. Bb7 {[%clk 0:01:09]}  fxe5 {[%clk 0:00:20]} 34. Bxe5 {[%clk 0:00:48]}  Nd6 {[%clk 0:00:21]} 35. Bxg7 {[%clk 0:00:17]}  Nxb7 {[%clk 0:00:19]} 36. Bxh6 {[%clk 0:00:17]}  Bd1 {[%clk 0:00:18]} 37. Bg5+ {[%clk 0:00:13]}  Kf7 {[%clk 0:00:18]} 38. Bf4 {[%clk 0:00:13]}  Bxg4 {[%clk 0:00:17]} 39. h6 {[%clk 0:00:13]}  Bf5 {[%clk 0:00:16]} 40. Bb8 {[%clk 0:00:13]}  Na5 {[%clk 0:00:16]} 41. Kc3 {[%clk 0:00:12]}  Nb7 {[%clk 0:00:09]} 42. Bxa7 {[%clk 0:00:12]}  Nd6 {[%clk 0:00:09]} 43. Bxb6 {[%clk 0:00:12]}  Ne4+ {[%clk 0:00:09]} 44. Kb3 {[%clk 0:00:11]}  Nd2+ {[%clk 0:00:09]} 45. Kc3 {[%clk 0:00:09]}  Ne4+ {[%clk 0:00:09]} 46. Kb2 {[%clk 0:00:10]}  Nd2 {[%clk 0:00:08]} 47. Bxc5 {[%clk 0:00:06]}  Nxc4+ {[%clk 0:00:09]} 48. Kc3 {[%clk 0:00:06]}  Na5 {[%clk 0:00:06]} 49. Kb4 {[%clk 0:00:06]}  Nb7 {[%clk 0:00:05]} 50. a4 {[%clk 0:00:07]}  Ke8 {[%clk 0:00:04]} 51. a5 {[%clk 0:00:06]}  Nxc5 {[%clk 0:00:02]} 52. Kxc5 {[%clk 0:00:06]}  Kd7 {[%clk 0:00:03]} 53. a6 {[%clk 0:00:05]}  Kc8 {[%clk 0:00:03]} 54. b6 {[%clk 0:00:05]}  Kb8 {[%clk 0:00:04]} 55. Kd6 {[%clk 0:00:05]}  Ka8 {[%clk 0:00:03]} 56. Kc7 {[%clk 0:00:05]}  e5 {[%clk 0:00:03]} 57. b7+ {[%clk 0:00:05]}  Ka7 {[%clk 0:00:04]} 58. b8=Q+ {[%clk 0:00:06]} 1-0


[Site "https://www.chess.com"]

[Event "Titled Tuesday Blitz February 15 Early 2022"]
[White "Kuzubov, Yuriy"]
[Black "Golizadeh, Asghar"]
[WhiteFideId "14112906"]
[BlackFideId "12505269"]
[WhiteElo "2548"]
[BlackElo "2403"]
[Result "1-0"]
[Round "03"]
[TimeControl "180+1"]
[Date "2022.02.15"]
[WhiteClock "0:01:04"]
[BlackClock "0:00:16"]

1. d4 {[%clk 0:03:00]}  Nf6 {[%clk 0:02:52]} 2. c4 {[%clk 0:03:00]}  g6 {[%clk 0:02:52]} 3. Nc3 {[%clk 0:02:59]}  d6 {[%clk 0:02:52]} 4. e4 {[%clk 0:02:54]}  Bg7 {[%clk 0:02:52]} 5. Be2 {[%clk 0:02:54]}  O-O {[%clk 0:02:52]} 6. Nf3 {[%clk 0:02:55]}  Nc6 {[%clk 0:02:53]} 7. Be3 {[%clk 0:02:48]}  e5 {[%clk 0:02:51]} 8. d5 {[%clk 0:02:48]}  Ne7 {[%clk 0:02:51]} 9. Nd2 {[%clk 0:02:48]}  Nd7 {[%clk 0:02:49]} 10. Qc2 {[%clk 0:02:46]}  c5 {[%clk 0:02:45]} 11. f3 {[%clk 0:02:34]}  f5 {[%clk 0:02:39]} 12. O-O-O {[%clk 0:02:30]}  a6 {[%clk 0:02:39]} 13. Kb1 {[%clk 0:02:30]}  Rb8 {[%clk 0:02:39]} 14. g4 {[%clk 0:02:23]}  f4 {[%clk 0:02:35]} 15. Bf2 {[%clk 0:02:23]}  Nb6 {[%clk 0:02:14]} 16. a3 {[%clk 0:02:22]}  Bd7 {[%clk 0:02:13]} 17. Ka2 {[%clk 0:02:16]}  Na8 {[%clk 0:02:12]} 18. Rb1 {[%clk 0:02:15]}  b5 {[%clk 0:02:11]} 19. cxb5 {[%clk 0:02:11]}  axb5 {[%clk 0:02:12]} 20. b4 {[%clk 0:02:11]}  c4 {[%clk 0:01:59]} 21. a4 {[%clk 0:02:10]}  bxa4 {[%clk 0:01:40]} 22. Nxc4 {[%clk 0:02:07]}  Qc7 {[%clk 0:01:24]} 23. b5 {[%clk 0:01:53]}  Nc8 {[%clk 0:01:13]} 24. Qd2 {[%clk 0:01:53]}  Ncb6 {[%clk 0:01:12]} 25. Na5 {[%clk 0:01:53]}  Rfc8 {[%clk 0:00:57]} 26. Nc6 {[%clk 0:01:52]}  Bxc6 {[%clk 0:00:57]} 27. bxc6 {[%clk 0:01:48]}  Qf7 {[%clk 0:00:44]} 28. Ka1 {[%clk 0:01:39]}  a3 {[%clk 0:00:42]} 29. Rb5 {[%clk 0:01:32]}  Bf6 {[%clk 0:00:36]} 30. Rhb1 {[%clk 0:01:28]}  Bd8 {[%clk 0:00:36]} 31. Qa2 {[%clk 0:01:23]}  Bc7 {[%clk 0:00:20]} 32. h4 {[%clk 0:01:22]}  Qf8 {[%clk 0:00:20]} 33. Bf1 {[%clk 0:01:20]}  h6 {[%clk 0:00:20]} 34. Qb3 {[%clk 0:01:18]}  Kh7 {[%clk 0:00:19]} 35. Ka2 {[%clk 0:01:17]}  Qd8 {[%clk 0:00:19]} 36. Rb4 {[%clk 0:01:14]}  Kg7 {[%clk 0:00:19]} 37. Ba6 {[%clk 0:01:12]}  Kh7 {[%clk 0:00:17]} 38. Bxc8 {[%clk 0:01:10]}  Rxc8 {[%clk 0:00:16]} 39. Bxb6 {[%clk 0:01:07]}  Nxb6 {[%clk 0:00:14]} 40. Rxb6 {[%clk 0:01:06]}  Bxb6 {[%clk 0:00:15]} 41. Qxb6 {[%clk 0:01:07]}  Qxb6 {[%clk 0:00:15]} 42. Rxb6 {[%clk 0:01:07]}  g5 {[%clk 0:00:16]} 43. h5 {[%clk 0:01:04]} 1-0


[Site "https://www.chess.com"]

[Event "Titled Tuesday Blitz February 15 Early 2022"]
[White "Leve, Nitai"]
[Black "Gozzoli, Yannick"]
[WhiteFideId "2006898"]
[BlackFideId "616915"]
[WhiteElo "2144"]
[BlackElo "2609"]
[Result "0-1"]
[Round "03"]
[TimeControl "180+1"]
[Date "2022.02.15"]
[WhiteClock "0:02:16"]
[BlackClock "0:02:33"]

1. e4 {[%clk 0:03:00]}  Nf6 {[%clk 0:02:57]} 2. e5 {[%clk 0:02:53]}  Nd5 {[%clk 0:02:57]} 3. c4 {[%clk 0:02:54]}  Nb6 {[%clk 0:02:57]} 4. d4 {[%clk 0:02:54]}  d6 {[%clk 0:02:58]} 5. exd6 {[%clk 0:02:55]}  cxd6 {[%clk 0:02:59]} 6. Nc3 {[%clk 0:02:47]}  g6 {[%clk 0:02:56]} 7. h3 {[%clk 0:02:44]}  Bg7 {[%clk 0:02:56]} 8. Nf3 {[%clk 0:02:42]}  O-O {[%clk 0:02:57]} 9. Be2 {[%clk 0:02:42]}  Nc6 {[%clk 0:02:57]} 10. Be3 {[%clk 0:02:38]}  Bf5 {[%clk 0:02:58]} 11. d5 {[%clk 0:02:39]}  Na5 {[%clk 0:02:52]} 12. Nd4 {[%clk 0:02:38]}  Naxc4 {[%clk 0:02:51]} 13. Nxf5 {[%clk 0:02:37]}  gxf5 {[%clk 0:02:52]} 14. Bd4 {[%clk 0:02:35]}  Nxb2 {[%clk 0:02:51]} 15. Qd2 {[%clk 0:02:35]}  N2c4 {[%clk 0:02:38]} 16. Qg5 {[%clk 0:02:34]}  e5 {[%clk 0:02:37]} 17. Qxf5 {[%clk 0:02:18]}  exd4 {[%clk 0:02:35]} 18. Bd3 {[%clk 0:02:17]}  Re8+ {[%clk 0:02:35]} 19. Kf1 {[%clk 0:02:17]}  dxc3 {[%clk 0:02:33]} 20. Qxh7+ {[%clk 0:02:16]}  Kf8 {[%clk 0:02:33]} 0-1


[Site "https://www.chess.com"]

[Event "Titled Tuesday Blitz February 15 Early 2022"]
[White "Levitskiy, Andrey"]
[Black "Gant, Chris J"]
[WhiteFideId "14132885"]
[BlackFideId "403946"]
[WhiteElo "2301"]
[BlackElo "2189"]
[Result "1-0"]
[Round "03"]
[TimeControl "180+1"]
[Date "2022.02.15"]
[WhiteClock "0:00:06"]
[BlackClock "0:00:12"]

1. e4 {[%clk 0:03:00]}  c5 {[%clk 0:02:58]} 2. Nf3 {[%clk 0:02:58]}  Nc6 {[%clk 0:02:57]} 3. d4 {[%clk 0:02:55]}  cxd4 {[%clk 0:02:57]} 4. Nxd4 {[%clk 0:02:56]}  g6 {[%clk 0:02:58]} 5. c4 {[%clk 0:02:55]}  Bg7 {[%clk 0:02:58]} 6. Be3 {[%clk 0:02:56]}  Nf6 {[%clk 0:02:58]} 7. Nc3 {[%clk 0:02:56]}  Ng4 {[%clk 0:02:58]} 8. Qxg4 {[%clk 0:02:54]}  Nxd4 {[%clk 0:02:58]} 9. Qd1 {[%clk 0:02:54]}  Ne6 {[%clk 0:02:58]} 10. Bd3 {[%clk 0:02:54]}  Bxc3+ {[%clk 0:02:57]} 11. bxc3 {[%clk 0:02:55]}  O-O {[%clk 0:02:55]} 12. O-O {[%clk 0:02:54]}  d6 {[%clk 0:02:54]} 13. f4 {[%clk 0:02:54]}  b6 {[%clk 0:02:53]} 14. f5 {[%clk 0:02:52]}  Nc5 {[%clk 0:02:53]} 15. Bc2 {[%clk 0:02:52]}  Bb7 {[%clk 0:02:53]} 16. Bh6 {[%clk 0:02:39]}  Re8 {[%clk 0:02:53]} 17. Qd4 {[%clk 0:02:35]}  f6 {[%clk 0:02:44]} 18. Qe3 {[%clk 0:02:18]}  Nd7 {[%clk 0:02:41]} 19. c5 {[%clk 0:02:01]}  bxc5 {[%clk 0:02:32]} 20. Bb3+ {[%clk 0:01:59]}  Kh8 {[%clk 0:02:32]} 21. fxg6 {[%clk 0:01:59]}  hxg6 {[%clk 0:02:04]} 22. Qh3 {[%clk 0:01:33]}  e6 {[%clk 0:01:50]} 23. Bxe6 {[%clk 0:01:13]}  Rxe6 {[%clk 0:01:49]} 24. Qxe6 {[%clk 0:00:47]}  Qe8 {[%clk 0:01:49]} 25. Qxd6 {[%clk 0:00:43]}  Qxe4 {[%clk 0:01:43]} 26. Rf2 {[%clk 0:00:38]}  Bc6 {[%clk 0:01:35]} 27. Rd1 {[%clk 0:00:28]}  Rg8 {[%clk 0:01:10]} 28. Qg3 {[%clk 0:00:27]}  g5 {[%clk 0:01:04]} 29. Qh3 {[%clk 0:00:25]}  Qh7 {[%clk 0:01:04]} 30. Qe6 {[%clk 0:00:19]}  Ba4 {[%clk 0:00:45]} 31. Re1 {[%clk 0:00:06]}  Qxh6 {[%clk 0:00:39]} 32. Qa6 {[%clk 0:00:04]}  Nb6 {[%clk 0:00:30]} 33. Qxa7 {[%clk 0:00:04]}  Qg7 {[%clk 0:00:29]} 34. Qxb6 {[%clk 0:00:04]}  Bc2 {[%clk 0:00:20]} 35. Qxf6 {[%clk 0:00:03]}  Qxf6 {[%clk 0:00:20]} 36. Rxf6 {[%clk 0:00:04]}  c4 {[%clk 0:00:19]} 37. Rh6+ {[%clk 0:00:04]}  Kg7 {[%clk 0:00:19]} 38. Rd6 {[%clk 0:00:04]}  Rf8 {[%clk 0:00:18]} 39. h3 {[%clk 0:00:04]}  Bd3 {[%clk 0:00:17]} 40. Rd7+ {[%clk 0:00:05]}  Kg8 {[%clk 0:00:17]} 41. Ree7 {[%clk 0:00:03]}  Rf1+ {[%clk 0:00:17]} 42. Kh2 {[%clk 0:00:04]}  Rf6 {[%clk 0:00:16]} 43. Rd8+ {[%clk 0:00:03]}  Rf8 {[%clk 0:00:15]} 44. Rxf8+ {[%clk 0:00:04]}  Kxf8 {[%clk 0:00:15]} 45. Rc7 {[%clk 0:00:05]}  Be2 {[%clk 0:00:13]} 46. a4 {[%clk 0:00:05]}  Ke8 {[%clk 0:00:13]} 47. a5 {[%clk 0:00:05]}  Kd8 {[%clk 0:00:13]} 48. Rg7 {[%clk 0:00:06]}  Kc8 {[%clk 0:00:13]} 49. a6 {[%clk 0:00:06]}  Kb8 {[%clk 0:00:13]} 50. a7+ {[%clk 0:00:07]}  Ka8 {[%clk 0:00:13]} 51. Kg3 {[%clk 0:00:07]}  Bd3 {[%clk 0:00:12]} 52. h4 {[%clk 0:00:06]}  gxh4+ {[%clk 0:00:12]} 53. Kxh4 {[%clk 0:00:07]}  Be2 {[%clk 0:00:12]} 54. g3 {[%clk 0:00:06]}  Bd3 {[%clk 0:00:12]} 55. g4 {[%clk 0:00:06]} 1-0


[Site "https://www.chess.com"]

[Event "Titled Tuesday Blitz February 15 Early 2022"]
[White "Ljukin, Sergei"]
[Black "Matinian, Nikita"]
[WhiteFideId "14102200"]
[BlackFideId "24129100"]
[WhiteElo "2312"]
[BlackElo "2422"]
[Result "0-1"]
[Round "03"]
[TimeControl "180+1"]
[Date "2022.02.15"]
[WhiteClock "0:00:10"]
[BlackClock "0:00:19"]

1. e4 {[%clk 0:02:57]}  c5 {[%clk 0:02:59]} 2. Nf3 {[%clk 0:02:56]}  d6 {[%clk 0:02:59]} 3. d4 {[%clk 0:02:57]}  cxd4 {[%clk 0:03:00]} 4. Nxd4 {[%clk 0:02:57]}  Nf6 {[%clk 0:03:00]} 5. Nc3 {[%clk 0:02:58]}  Nc6 {[%clk 0:03:01]} 6. Bc4 {[%clk 0:02:57]}  e6 {[%clk 0:02:58]} 7. Be3 {[%clk 0:02:56]}  Be7 {[%clk 0:02:54]} 8. Qe2 {[%clk 0:02:56]}  Rb8 {[%clk 0:02:49]} 9. O-O-O {[%clk 0:02:54]}  Bd7 {[%clk 0:02:34]} 10. g4 {[%clk 0:02:49]}  Nxd4 {[%clk 0:02:34]} 11. Bxd4 {[%clk 0:02:43]}  b5 {[%clk 0:02:34]} 12. Bb3 {[%clk 0:02:32]}  b4 {[%clk 0:02:33]} 13. Nb1 {[%clk 0:01:43]}  Bc6 {[%clk 0:01:50]} 14. Nd2 {[%clk 0:01:35]}  a5 {[%clk 0:01:48]} 15. g5 {[%clk 0:01:31]}  Nd7 {[%clk 0:01:47]} 16. f4 {[%clk 0:01:28]}  a4 {[%clk 0:01:47]} 17. Bc4 {[%clk 0:01:28]}  e5 {[%clk 0:01:44]} 18. fxe5 {[%clk 0:01:21]}  dxe5 {[%clk 0:01:40]} 19. Be3 {[%clk 0:01:17]}  O-O {[%clk 0:01:38]} 20. h4 {[%clk 0:01:09]}  Bc5 {[%clk 0:01:33]} 21. h5 {[%clk 0:01:05]}  Bxe3 {[%clk 0:01:33]} 22. Qxe3 {[%clk 0:01:05]}  Qb6 {[%clk 0:01:33]} 23. Qe2 {[%clk 0:00:57]}  Kh8 {[%clk 0:00:53]} 24. g6 {[%clk 0:00:52]}  h6 {[%clk 0:00:54]} 25. gxf7 {[%clk 0:00:40]}  Nf6 {[%clk 0:00:53]} 26. Rdg1 {[%clk 0:00:35]}  Rb7 {[%clk 0:00:39]} 27. Rxg7 {[%clk 0:00:19]}  Kxg7 {[%clk 0:00:39]} 28. Qg2+ {[%clk 0:00:19]}  Kh8 {[%clk 0:00:37]} 29. Qg6 {[%clk 0:00:19]}  Bxe4 {[%clk 0:00:29]} 30. Qxh6+ {[%clk 0:00:16]}  Nh7 {[%clk 0:00:29]} 31. Be6 {[%clk 0:00:10]}  Bxh1 {[%clk 0:00:19]} 0-1


[Site "https://www.chess.com"]

[Event "Titled Tuesday Blitz February 15 Early 2022"]
[White "Lopez Del Alamo, Antonio"]
[Black "Pires, Marcos Vinicius Torsani"]
[WhiteFideId "2227339"]
[BlackFideId "2118939"]
[WhiteElo "2082"]
[BlackElo "2273"]
[Result "1-0"]
[Round "03"]
[TimeControl "180+1"]
[Date "2022.02.15"]
[WhiteClock "0:00:05"]
[BlackClock "0:00:06"]

1. e4 {[%clk 0:02:42]}  c6 {[%clk 0:03:00]} 2. d4 {[%clk 0:02:39]}  d5 {[%clk 0:03:01]} 3. e5 {[%clk 0:02:39]}  Qc7 {[%clk 0:03:01]} 4. h4 {[%clk 0:02:39]}  c5 {[%clk 0:03:00]} 5. c3 {[%clk 0:02:37]}  Nc6 {[%clk 0:02:59]} 6. Be3 {[%clk 0:02:34]}  Qb6 {[%clk 0:02:51]} 7. Qd2 {[%clk 0:02:30]}  cxd4 {[%clk 0:02:51]} 8. cxd4 {[%clk 0:02:29]}  Bf5 {[%clk 0:02:49]} 9. Nc3 {[%clk 0:02:28]}  e6 {[%clk 0:02:44]} 10. g4 {[%clk 0:02:27]}  Bxg4 {[%clk 0:02:40]} 11. Bh3 {[%clk 0:02:20]}  Bxh3 {[%clk 0:02:32]} 12. Rxh3 {[%clk 0:02:21]}  Nge7 {[%clk 0:02:25]} 13. Nge2 {[%clk 0:02:18]}  Nf5 {[%clk 0:02:24]} 14. Rd1 {[%clk 0:02:18]}  Be7 {[%clk 0:02:16]} 15. h5 {[%clk 0:02:17]}  h6 {[%clk 0:02:17]} 16. Ng3 {[%clk 0:02:14]}  Nxe3 {[%clk 0:02:11]} 17. fxe3 {[%clk 0:02:13]}  Bg5 {[%clk 0:02:05]} 18. Nf1 {[%clk 0:02:08]}  Rc8 {[%clk 0:01:54]} 19. Nh2 {[%clk 0:02:03]}  Na5 {[%clk 0:01:43]} 20. b3 {[%clk 0:02:01]}  Be7 {[%clk 0:01:37]} 21. Na4 {[%clk 0:01:46]}  Qb5 {[%clk 0:01:30]} 22. Qe2 {[%clk 0:01:43]}  Bb4+ {[%clk 0:01:28]} 23. Kf1 {[%clk 0:01:42]}  Qxe2+ {[%clk 0:01:26]} 24. Kxe2 {[%clk 0:01:43]}  Rc2+ {[%clk 0:01:27]} 25. Kf3 {[%clk 0:01:42]}  O-O {[%clk 0:01:22]} 26. Ng4 {[%clk 0:01:37]}  Rfc8 {[%clk 0:01:16]} 27. Rg1 {[%clk 0:01:29]}  Kh7 {[%clk 0:01:16]} 28. Rhg3 {[%clk 0:01:28]}  Bf8 {[%clk 0:01:09]} 29. Nc5 {[%clk 0:01:26]}  Bxc5 {[%clk 0:00:52]} 30. dxc5 {[%clk 0:01:25]}  R2xc5 {[%clk 0:00:51]} 31. Nf6+ {[%clk 0:01:24]}  gxf6 {[%clk 0:00:51]} 32. Rg7+ {[%clk 0:01:24]}  Kh8 {[%clk 0:00:52]} 33. Rxf7 {[%clk 0:01:21]}  Nc6 {[%clk 0:00:39]} 34. Rxf6 {[%clk 0:01:15]}  Nxe5+ {[%clk 0:00:38]} 35. Kf4 {[%clk 0:01:15]}  Nd3+ {[%clk 0:00:35]} 36. Kf3 {[%clk 0:01:15]}  R5c7 {[%clk 0:00:22]} 37. Rxh6+ {[%clk 0:01:02]}  Rh7 {[%clk 0:00:23]} 38. Rxe6 {[%clk 0:01:02]}  Rxh5 {[%clk 0:00:20]} 39. Ke2 {[%clk 0:01:01]}  Nc5 {[%clk 0:00:18]} 40. Re7 {[%clk 0:01:00]}  Ne4 {[%clk 0:00:18]} 41. Rgg7 {[%clk 0:00:57]}  Rc2+ {[%clk 0:00:17]} 42. Kf3 {[%clk 0:00:54]}  Rf2+ {[%clk 0:00:17]} 43. Kg4 {[%clk 0:00:55]}  Rg2+ {[%clk 0:00:16]} 44. Kxh5 {[%clk 0:00:55]}  Rxg7 {[%clk 0:00:17]} 45. Re5 {[%clk 0:00:51]}  Rd7 {[%clk 0:00:12]} 46. Kh6 {[%clk 0:00:50]}  Rd6+ {[%clk 0:00:12]} 47. Kh5 {[%clk 0:00:49]}  Kg7 {[%clk 0:00:12]} 48. Re7+ {[%clk 0:00:48]}  Kf6 {[%clk 0:00:13]} 49. Rxb7 {[%clk 0:00:49]}  Ng3+ {[%clk 0:00:12]} 50. Kg4 {[%clk 0:00:49]}  Nf5 {[%clk 0:00:11]} 51. Kf4 {[%clk 0:00:45]}  Ra6 {[%clk 0:00:09]} 52. a4 {[%clk 0:00:44]}  Nd6 {[%clk 0:00:09]} 53. Rd7 {[%clk 0:00:43]}  Ke6 {[%clk 0:00:09]} 54. Rh7 {[%clk 0:00:43]}  Rb6 {[%clk 0:00:09]} 55. Rh6+ {[%clk 0:00:42]}  Kd7 {[%clk 0:00:09]} 56. Rh7+ {[%clk 0:00:43]}  Kc6 {[%clk 0:00:09]} 57. Rxa7 {[%clk 0:00:43]}  Rxb3 {[%clk 0:00:10]} 58. Ra6+ {[%clk 0:00:40]}  Kc5 {[%clk 0:00:10]} 59. Ra5+ {[%clk 0:00:35]}  Kc4 {[%clk 0:00:09]} 60. Ke5 {[%clk 0:00:31]}  Ne4 {[%clk 0:00:02]} 61. Rxd5 {[%clk 0:00:30]}  Nc3 {[%clk 0:00:01]} 62. Rd4+ {[%clk 0:00:29]}  Kc5 {[%clk 0:00:02]} 63. Ke6 {[%clk 0:00:25]}  Ra3 {[%clk 0:00:03]} 64. Rd3 {[%clk 0:00:22]}  Rxa4 {[%clk 0:00:01]} 65. Rxc3+ {[%clk 0:00:21]}  Kb4 {[%clk 0:00:02]} 66. Rc1 {[%clk 0:00:20]}  Ra6+ {[%clk 0:00:03]} 67. Kf5 {[%clk 0:00:16]}  Ra8 {[%clk 0:00:04]} 68. e4 {[%clk 0:00:16]}  Rf8+ {[%clk 0:00:04]} 69. Ke5 {[%clk 0:00:15]}  Re8+ {[%clk 0:00:05]} 70. Kd4 {[%clk 0:00:15]}  Rd8+ {[%clk 0:00:04]} 71. Ke3 {[%clk 0:00:15]}  Re8 {[%clk 0:00:05]} 72. Rc7 {[%clk 0:00:14]}  Kb5 {[%clk 0:00:05]} 73. Rc1 {[%clk 0:00:09]}  Kb6 {[%clk 0:00:04]} 74. Kf3 {[%clk 0:00:08]}  Rf8+ {[%clk 0:00:04]} 75. Kg4 {[%clk 0:00:09]}  Re8 {[%clk 0:00:05]} 76. Kf5 {[%clk 0:00:09]}  Rf8+ {[%clk 0:00:05]} 77. Kg6 {[%clk 0:00:09]}  Re8 {[%clk 0:00:05]} 78. Re1 {[%clk 0:00:05]}  Kc6 {[%clk 0:00:05]} 79. e5 {[%clk 0:00:05]}  Kd5 {[%clk 0:00:05]} 80. Kf6 {[%clk 0:00:04]}  Re6+ {[%clk 0:00:06]} 81. Kf5 {[%clk 0:00:04]}  Re8 {[%clk 0:00:06]} 82. Rd1+ {[%clk 0:00:05]}  Kc6 {[%clk 0:00:07]} 83. e6 {[%clk 0:00:05]}  Rf8+ {[%clk 0:00:05]} 84. Ke5 {[%clk 0:00:05]}  Rf2 {[%clk 0:00:05]} 85. Rc1+ {[%clk 0:00:05]}  Kb7 {[%clk 0:00:04]} 86. e7 {[%clk 0:00:05]}  Re2+ {[%clk 0:00:05]} 87. Kf6 {[%clk 0:00:06]}  Rf2+ {[%clk 0:00:05]} 88. Ke6 {[%clk 0:00:06]}  Re2+ {[%clk 0:00:06]} 89. Kf7 {[%clk 0:00:06]}  Rf2+ {[%clk 0:00:06]} 90. Ke8 {[%clk 0:00:06]}  Kb8 {[%clk 0:00:05]} 91. Rc5 {[%clk 0:00:06]}  Rf1 {[%clk 0:00:04]} 92. Kd7 {[%clk 0:00:05]}  Rd1+ {[%clk 0:00:05]} 93. Ke6 {[%clk 0:00:05]}  Re1+ {[%clk 0:00:06]} 94. Re5 {[%clk 0:00:05]}  Rxe5+ {[%clk 0:00:06]} 95. Kxe5 {[%clk 0:00:05]} 1-0


[Site "https://www.chess.com"]